Workbook

Sheet Main
B1: Steam Turbine Calculator
B2: This excel sheet calculates the power that turbine can generate with specific inlet and outlet conditions.
G4: Sat. Temp
C5: Inlet Steam Pressure : | D5: 350 | E5: psig | G5: =Tsat_p(D5+Convert_Gauge_to_Absolute) -> 435.6752975 | H5: °F
G6: State
C7: Degree of Superheat : | D7: 261.1 | E7: °F | G7: =IF(D7=0,"Saturated","Superheated") -> Superheated
G8: Enthalpy
C9: Inlet Temperature : | D9: =D7+G5 -> 696.7752975 | E9: °F | G9: =IF(G7="Saturated",hV_p(D5+Convert_Gauge_to_Absolute),h_pt(D5+Convert_Gauge_to_Absolute,D9)) -> 1363.145088 | H9: Btu/lb
G10: Entropy
C11: Steam Flow : | D11: 5000 | E11: lb/hr | G11: =IF(G7="Saturated",sV_p(D5+Convert_Gauge_to_Absolute),s_pT(D5+Convert_Gauge_to_Absolute,D9)) -> 1.650150898 | H11: Btu/lb°F | T11: =ROUND(D5,0)&E5 -> 350 psig
G13: Shaft Energy | O13: =TEXT(ROUND(D11,0),"#,###") &E11 -> 5,000 lb/hr
C14: Efficiency : | D14: 47.3 | E14: % | G14: =(G9-G23)*D11/Convert_hp_to_Btulb -> 207.5418158 | H14: hp | O14: =TEXT(D5,0)&E5 -> 350 psig
O15: =TEXT(D9,0)&E9 -> 697 °F
G16: Sat. Temp | M16: Efficiency
C17: Outlet Steam Pressure : | D17: 20 | E17: psig | G17: =Tsat_p(D17+Convert_Gauge_to_Absolute) -> 258.7411115 | H17: °F | M17: =ROUND(D14,0)/100 -> 0.47
G18: State | Q18: Shaft Work
C19: Outlet Temperature : | D19: =T_ph(D17+Convert_Gauge_to_Absolute,G23) -> 441.9168384 | E19: °F | G19: =IF(D21>0,"Superheated",IF(D23=0,"Liquid","Saturated")) -> Superheated | Q19: =ROUND(G14,0)&" " &H14 -> 208 hp
G20: Enthalpy (Isentropic) | O20: =TEXT(D19,0)&E19 -> 442 °F
C21: Degree of Superheat : | D21: =IF(D19>=G17,D19-G17,"") -> 183.175727 | E21: °F | G21: =h_ps(D17+Convert_Gauge_to_Absolute,G11) -> 1139.856984 | H21: Btu/lb | O21: =TEXT(D17,0)&E17 -> 20 psig
G22: Enthalpy (Actual) | O22: =G19 -> Superheated
C23: Steam Quality : | D23: =x_ph(D17+Convert_Gauge_to_Absolute,G23) -> 1 | G23: =G9-(D14/100*(G9-G21)) -> 1257.529815 | H23: Btu/lb
T24: =ROUND(D17,0)&E17 -> 20 psig
C27: Copy Rights: Not to be copied or distributed without specific permission from Inveno Engineering LLC; kelly.paffel@invenoeng.com

Sheet Blank for Calculation
A1: User Calculations Sheet
A3: This is a blank sheet provided for the user to make notes, carry out calculations etc.

Sheet Properties
B1: Steam Tables (English Units)
B6: Saturation properties given temperature | F6: Saturation properties given pressure
B7: Temperature | C7: 50 | D7: degF | F7: Pressure | G7: 12.57 | H7: psi (a)
B8: Saturation pressure | C8: =psat_t(C7) -> 0.17813301 | D8: psi (a) | F8: Saturation temperature | G8: =Tsat_p(G7) -> 204.1777779 | H8: degF
B9: Liquid | F9: Liquid
B10: Enthalpy | C10: =hL_T(C7) -> 18.06581627 | D10: btu/lb | F10: Enthalpy | G10: =hL_p(G7) -> 172.3024255 | H10: btu/lb
B11: Density | C11: =rhoL_T(C7) -> 62.40634262 | D11: lb /ft3 | F11: Density | G11: =rhoL_P(G7) -> 60.02020914 | H11: lb /ft3
B12: Entropy | C12: =sL_T(C7) -> 0.0360860529 | D12: btu/(lb F) | F12: Entropy | G12: =sL_p(G7) -> 0.3003874422 | H12: btu/(lb F)
B13: Vapour | F13: Vapour
B14: Vapour enthalpy | C14: =hV_T(C7) -> 1083.073877 | D14: btu/lb | F14: Vapour enthalpy | G14: =hV_p(G7) -> 1147.318491 | H14: btu/lb
B15: Vapour density | C15: =rhoV_T(C7) -> 0.0005872328646 | D15: lb /ft3 | F15: Vapour density | G15: =rhoV_p(G7) -> 0.03223554216 | H15: lb /ft3
B16: Vapour Entropy | C16: =sV_T(C7) -> 2.125691679 | D16: btu/(lb F) | F16: vapour Entropy | G16: =sV_p(G7) -> 1.769114371 | H16: btu/(lb F)
B17: Evaporation energy | C17: =C14-C10 -> 1065.008061 | D17: btu/lb | F17: Evaporation energy | G17: =G14-G10 -> 975.0160654 | H17: btu/lb
B19: Properties given pressure and temperature | F19: Properties given pressure and enthalpy
B20: Pressure | C20: 100 | D20: psi (a) | F20: Pressure | G20: 12.57 | H20: psi (a)
B21: Temperature | C21: 50 | D21: degF | F21: Enthalpy | G21: 2788 | H21: btu/lb
B22: Enthalpy | C22: =h_pt(C20,C21) -> 18.3543276 | D22: btu/lb | F22: Temperature | G22: =T_ph(G20,G21) -> 3074.570748 | H22: degF
B23: Density | C23: =rho_pT(C20,C21) -> 62.42685928 | D23: lb /ft3 | F23: Density | G23: =rho_ph(G20,G21) -> 0.005970345217 | H23: lb /ft3
B24: Entropy | C24: =s_pT(C20,C21) -> 0.03607146366 | D24: btu/(lb F) | F24: Entropy | G24: =s_ph(G20,G21) -> 2.674276314 | H24: btu/(lb F)
B25: Vapour fraction | C25: =x_ph(C20,C22)*100 -> 0 | D25: % | F25: Vapour fraction | G25: =x_ph(G20,G21)*100 -> 100 | H25: %
B26: IF97 Region | C26: =region_pt(C20/10,C21+273.15) -> 1 | F26: IF97 Region | G26: =region_ph(G20/10,G21) -> 2
B27: Phase | C27: =IF(C26=2,"Steam",IF(C26=1,"Liquid",IF(C26=4,"Mixture",""))) -> Liquid | F27: Phase | G27: =IF(G26=2,"Steam",IF(G26=1,"Liquid",IF(G26=4,"Mixture",""))) -> Steam
B28: Isobaric heat capacity | C28: =Cp_pT(C20,C21) -> 1.001534033 | D28: btu/(lb F) | F28: Isobaric heat capacity | G28: =Cp_ph(G20,G21) -> 0.6752417934 | H28: btu/(lb F)
B29: Speed of sound | C29: =w_pT(C20,C21) -> 4752.240198 | D29: ft/s | F29: Speed of sound | G29: =w_ph(G20,G21) -> 3414.439144 | H29: ft/s
B31: Copy Rights: Not to be copied or distributed without specific permission from Inveno Engineering LLC; kelly.paffel@invenoeng.com

Sheet Functions
A1: Steam Tables
A8: Temperature
A9: Tsat_p | B9: 14.5037738 | C9: psi | F9: =Tsat_p(B9) -> 211.2906536 | G9: deg F | H9: Saturation temperature
A10: T_ph | B10: 1 | C10: psi | D10: 100 | E10: btu/lb | F10: =T_ph(B10,D10) -> 101.6943372 | G10: deg F | H10: Temperture as a function of pressure and enthalpy
A11: T_ps | B11: 1 | C11: psi | D11: 1 | E11: btu/(lb F) | F11: =T_ps(B11,D11) -> 101.6943372 | G11: deg F | H11: Temperture as a function of pressure and entropy
A12: T_hs | B12: 100 | C12: btu/lb | D12: 0.2 | E12: btu/(lb F) | F12: =T_hs(B12,D12) -> 40.71270876 | G12: deg F | H12: Temperture as a function of enthalpy and entropy
A13: Pressure
A14: psat_T | B14: 100 | C14: deg F | F14: =psat_t(B14) -> 0.9504393308 | G14: psi (a) | H14: Saturation pressure
A15: p_hs | B15: 100 | C15: btu/lb | D15: =F49 -> 0.1851252476 | E15: btu/(lb F) | F15: =p_hs(B15,D15) -> 5.988291907 | G15: psi (a) | H15: Pressure as a function of h and s.
A16: p_hrho | B16: 100 | C16: btu/lb | D16: 5 | E16: lb/ft3 | F16: =p_hrho(B16,D16) -> 2.273731918 | G16: psi (a) | H16: Pressure as a function of h and rho (density). Very unaccurate for solid water region since it's almost incompressible!
A17: Enthalpy
A18: hV_p | B18: 1 | C18: psi | F18: =hV_p(B18) -> 1105.439339 | G18: btu/lb | H18: Saturated vapour enthalpy
A19: hL_p | B19: 1 | C19: psi | F19: =hL_p(B19) -> 69.72823905 | G19: btu/lb | H19: Saturated liquid enthalpy
A20: hV_T | B20: 100 | C20: deg F | F20: =hV_T(B20) -> 1104.714855 | G20: btu/lb | H20: Saturated vapour enthalpy
A21: hL_T | B21: 100 | C21: deg F | F21: =hL_T(B21) -> 68.03698564 | G21: btu/lb | H21: Saturated liquid enthalpy
A22: h_pT | B22: 14.5037738 | C22: psi | D22: 68 | E22: deg F | F22: =h_pt(B22,D22) -> 36.11857746 | G22: btu/lb | H22: Entalpy as a function of pressure and temperature.
A23: h_ps | B23: 1 | C23: psi | D23: 1 | E23: btu/(lb F) | F23: =h_ps(B23,D23) -> 556.6369136 | G23: btu/lb | H23: Entalpy as a function of pressure and entropy.
A24: h_px | B24: 1 | C24: psi | D24: 0.5 | F24: =h_px(B24,D24) -> 587.5837889 | G24: btu/lb | H24: Entalpy as a function of pressure and vapour fraction
A25: h_Tx | B25: 100 | C25: deg F | D25: 0.5 | F25: =h_tx(B25,D25) -> 586.3759202 | G25: btu/lb | H25: Entalpy as a function of temperature and vapour fraction
A26: h_prho | B26: 1 | C26: psi | D26: 2 | E26: lb/ft3 | F26: =h_prho(B26,D26) -> 71.23095397 | G26: btu/lb | H26: Entalpy as a function of pressure and density. Observe for low temperatures (liquid) this equation has 2 solutions. (Not valid!!)
A27: Specific volume
A28: vV_p | B28: 1 | C28: psi | F28: =vV_p(B28) -> 333.5075189 | G28: ft3/lb | H28: Saturated vapour volume
A29: vL_p | B29: 1 | C29: psi | F29: =vL_p(B29) -> 0.01613681121 | G29: ft3/lb | H29: Saturated liquid volume
A30: vV_T | B30: 100 | C30: deg F | F30: =vV_T(B30) -> 349.8695999 | G30: ft3/lb | H30: Saturated vapour volume
A31: vL_T | B31: 100 | C31: deg F | F31: =vL_T(B31) -> 0.01613117433 | G31: ft3/lb | H31: Saturated liquid volume
A32: v_pT | B32: 1 | C32: psi | D32: 100 | E32: deg F | F32: =v_pT(B32,D32) -> 0.01613117189 | G32: ft3/lb | H32: Specific volume as a function of pressure and temperature.
A33: v_ph | B33: 1 | C33: psi | D33: 1000 | E33: btu/lb | F33: =v_ph(B33,D33) -> 299.5568248 | G33: ft3/lb | H33: Specific volume as a function of pressure and enthalpy
A34: v_ps | B34: 10 | C34: psi | D34: =F49 -> 0.1851252476 | E34: btu/(lb F) | F34: =v_ps(B34,D34) -> 0.01625542384 | G34: ft3/lb | H34: Specific volume as a function of pressure and entropy.
A35: Density
A36: rhoV_p | B36: 1 | C36: psi | F36: =rhoV_p(B36) -> 0.002998433148 | G36: lb/ft3 | H36: Saturated vapour density
A37: rhoL_p | B37: 1 | C37: psi | F37: =rhoL_P(B37) -> 61.97011213 | G37: lb/ft3 | H37: Saturated liquid density
A38: rhoV_T | B38: 100 | C38: deg F | F38: =rhoV_T(B38) -> 0.002858207745 | G38: lb/ft3 | H38: Saturated vapour density
A39: rhoL_T | B39: 100 | C39: deg F | F39: =rhoL_T(B39) -> 61.99176698 | G39: lb/ft3 | H39: Saturated liquid density
A40: rho_pT | B40: 1 | C40: psi | D40: 100 | E40: deg F | F40: =rho_pT(B40,D40) -> 61.99177634 | G40: lb/ft3 | H40: Density as a function of pressure and temperature.
A41: rho_ph | B41: 1 | C41: psi | D41: 1000 | E41: btu/lb | F41: =rho_ph(B41,D41) -> 0.003338264788 | G41: lb/ft3 | H41: Density as a function of pressure and enthalpy
A42: rho_ps | B42: 1 | C42: psi | D42: 1 | E42: btu/(lb F) | F42: =rho_ps(B42,D42) -> 0.006377666498 | G42: lb/ft3 | H42: Density as a function of pressure and entropy.
A43: Specific entropy
A44: sV_p | B44: 1 | C44: psi | F44: =sV_p(B44) -> 1.97762468 | G44: btu/(lb F) | H44: Saturated vapour entropy
A45: sL_p | B45: 1 | C45: psi | F45: =sL_p(B45) -> 0.1326314985 | G45: btu/(lb F) | H45: Saturated liquid entropy
A46: sV_T | B46: 50 | C46: deg F | F46: =sV_T(B46) -> 2.125691679 | G46: btu/(lb F) | H46: Saturated vapour entropy
A47: sL_T | B47: 100 | C47: deg F | F47: =sL_T(B47) -> 0.1296144513 | G47: btu/(lb F) | H47: Saturated liquid entropy
A48: s_pT | B48: 1 | C48: psi | D48: 50 | E48: deg F | F48: =s_pT(B48,D48) -> 0.0360859339 | G48: btu/(lb F) | H48: Specific entropy as a function of pressure and temperature (Returns saturated vapour entalpy if mixture.)
A49: s_ph | B49: 10 | C49: psi | D49: 100 | E49: btu/lb | F49: =s_ph(B49,D49) -> 0.1851252476 | G49: btu/(lb F) | H49: Specific entropy as a function of pressure and enthalpy
A50: Specific internal energy
A51: uV_p | B51: 1 | C51: psi | F51: =uV_p(B51) -> 1043.723867 | G51: btu/lb | H51: Saturated vapour internal energy
A52: uL_p | B52: 1 | C52: psi | F52: =uL_p(B52) -> 69.72525294 | G52: btu/lb | H52: Saturated liquid internal energy
A53: uV_T | B53: 100 | C53: deg F | F53: =uV_T(B53) -> 1043.180305 | G53: btu/lb | H53: Saturated vapour internal energy
A54: uL_T | B54: 100 | C54: deg F | F54: =uL_T(B54) -> 68.03414851 | G54: btu/lb | H54: Saturated liquid internal energy
A55: u_pT | B55: 1 | C55: psi | D55: 100 | E55: deg F | F55: =u_pT(B55,D55) -> 68.0341316 | G55: btu/lb | H55: Specific internal energy as a function of pressure and temperature.
A56: u_ph | B56: 1 | C56: psi | D56: 1000 | E56: btu/lb | F56: =u_ph(B56,D56) -> 944.567095 | G56: btu/lb | H56: Specific internal energy as a function of pressure and enthalpy
A57: u_ps | B57: 1 | C57: psi | D57: 1 | E57: btu/(lb F) | F57: =u_ps(B57,D57) -> 527.6216438 | G57: btu/lb | H57: Specific internal energy as a function of pressure and entropy.
A58: Specific isobaric heat capacity
A59: CpV_p | B59: 1 | C59: psi | F59: =CpV_p(B59) -> 0.4610466176 | G59: btu/(lb F) | H59: Saturated vapour heat capacity
A60: CpL_p | B60: 1 | C60: psi | F60: =CpL_p(B60) -> 0.9980961319 | G60: btu/(lb F) | H60: Saturated liquid heat capacity
A61: CpV_T | B61: 100 | C61: deg F | F61: =CpV_T(B61) -> 0.4607141352 | G61: btu/(lb F) | H61: Saturated vapour heat capacity
A62: CpL_T | B62: 100 | C62: deg F | F62: =CpL_T(B62) -> 0.9981101482 | G62: btu/(lb F) | H62: Saturated liquid heat capacity
A63: Cp_pT | B63: 1 | C63: psi | D63: 100 | E63: deg F | F63: =Cp_pT(B63,D63) -> 0.9981099431 | G63: btu/(lb F) | H63: Specific isobaric heat capacity as a function of pressure and temperature.
A64: Cp_ph | B64: 100 | C64: psi | D64: 200 | E64: btu/lb | F64: =Cp_ph(B64,D64) -> 1.010383515 | G64: btu/(lb F) | H64: Specific isobaric heat capacity as a function of pressure and enthalpy
A65: Cp_ps | B65: 100 | C65: psi | D65: =F49 -> 0.1851252476 | E65: btu/(lb F) | F65: =Cp_ps(B65,D65) -> 0.9983168509 | G65: btu/(lb F) | H65: Specific isobaric heat capacity as a function of pressure and entropy.
A66: Specific isochoric heat capacity
A67: CvV_p | B67: 1 | C67: psi | F67: =CvV_p(B67) -> 0.3473815118 | G67: btu/(lb F) | H67: Saturated vapour isochoric heat capacity
A68: CvL_p | B68: 1 | C68: psi | F68: =CvL_p(B68) -> 0.9741948707 | G68: btu/(lb F) | H68: Saturated liquid isochoric heat capacity
A69: CvV_T | B69: 100 | C69: deg F | F69: =CvV_T(B69) -> 0.3471349757 | G69: btu/(lb F) | H69: Saturated vapour isochoric heat capacity
A70: CvL_T | B70: 100 | C70: deg F | F70: =CvL_T(B70) -> 0.9752371398 | G70: btu/(lb F) | H70: Saturated liquid isochoric heat capacity
A71: Cv_pT | B71: 1 | C71: psi | D71: 100 | E71: deg F | F71: =Cv_pT(B71,D71) -> 0.9752369016 | G71: btu/(lb F) | H71: Specific isochoric heat capacity as a function of pressure and temperature.
A72: Cv_ph | B72: 100 | C72: psi | D72: 200 | E72: btu/lb | F72: =Cv_ph(B72,D72) -> 0.8867422172 | G72: btu/(lb F) | H72: Specific isochoric heat capacity as a function of pressure and enthalpy
A73: Cv_ps | B73: 100 | C73: psi | D73: =D65 -> 0.1851252476 | E73: btu/(lb F) | F73: =Cv_ps(B73,D73) -> 0.9541207319 | G73: btu/(lb F) | H73: Specific isochoric heat capacity as a function of pressure and entropy.
A74: Speed of sound
A75: wV_p | B75: 1 | C75: psi | F75: =wV_p(B75) -> 1430.023344 | G75: ft/s | H75: Saturated vapour speed of sound
A76: wL_p | B76: 1 | C76: psi | F76: =wL_p(B76) -> 5016.126591 | G76: ft/s | H76: Saturated liquid speed of sound
A77: wV_T | B77: 100 | C77: deg F | F77: =wV_T(B77) -> 1427.980732 | G77: ft/s | H77: Saturated vapour speed of sound
A78: wL_T | B78: 100 | C78: deg F | F78: =wL_T(B78) -> 5010.524066 | G78: ft/s | H78: Saturated liquid speed of sound
A79: w_pT | B79: 1 | C79: psi | D79: 100 | E79: deg F | F79: =w_pT(B79,D79) -> 5010.525873 | G79: ft/s | H79: Speed of sound as a function of pressure and temperature.
A80: w_ph | B80: 100 | C80: psi | D80: 100 | E80: btu/lb | F80: =w_ph(B80,D80) -> 5090.517797 | G80: ft/s | H80: Speed of sound as a function of pressure and enthalpy
A81: w_ps | B81: 100 | C81: psi | D81: =D73 -> 0.1851252476 | E81: btu/(lb F) | F81: =w_ps(B81,D81) -> 5090.919366 | G81: ft/s | H81: Speed of sound as a function of pressure and entropy.
A82: Dynamic Viscosity
A83: Viscosity is not part of IAPWS Steam IF97. Equations from ""Revised Release on the IAPWS Formulation 1985 for the Viscosity of Ordinary Water Substance"", 2003 are used.
A84: Viscosity in the mixed region (4) is interpolated according to the density. This is not true since it will be two fases.
A85: my_pT | B85: 1 | C85: psi | D85: 100 | E85: deg F | F85: =my_pT(B85,D85) -> 1.647817811 | G85: lb/ft/hr | H85: Viscosity as a function of pressure and temperature.
A86: my_ph | B86: 100 | C86: psi | D86: 100 | E86: btu/lb | F86: =my_ph(B86,D86) -> 1.211118873 | G86: lb/ft/hr | H86: Viscosity as a function of pressure and enthalpy
A87: my_ps | B87: 100 | C87: psi | D87: =D81 -> 0.1851252476 | E87: btu/(lb F) | F87: =my_ps(B87,D87) -> 1.208179571 | G87: lb/ft/hr | H87: Viscosity as a function of pressure and entropy.
A88: Prandtl
A89: Calcualted as Cp*my/tc
A90: pr_pT | B90: 1 | C90: psi | D90: 200 | E90: deg F | F90: =pr_pT(B90,D90) -> 0.9701202438 | G90: -
A91: pr_ph | B91: 1 | C91: psi | D91: 0.19 | E91: btu/lb | F91: =pr_ph(B91,D91) -> 13.40562938 | G91: -
A92: Thermal Conductivity
A93: Revised release on the IAPS Formulation 1985 for the Thermal Conductivity of ordinary water substance (IAPWS 1998)
A94: tcL_p | B94: 1 | C94: psi | F94: =tcL_p(B94) -> 0.3622261387 | G94: btu/(h*ft*F) | H94: Saturated vapour thermal conductivity
A95: tcV_p | B95: 1 | C95: psi | F95: =tcV_p(B95) -> 0.01119774893 | G95: btu/(h*ft*F) | H95: Saturated liquid thermal conductivity
A96: tcL_T | B96: 50 | C96: deg F | F96: =tcL_T(B96) -> 0.3362266821 | G96: btu/(h*ft*F) | H96: Saturated vapour thermal conductivity
A97: tcV_T | B97: 50 | C97: deg F | F97: =tcV_T(B97) -> 0.009946376555 | G97: btu/(h*ft*F) | H97: Saturated liquid thermal conductivity
A98: tc_pT | B98: 1 | C98: psi | D98: 50 | E98: deg F | F98: =tc_pt(B98,D98) -> 0.3362285212 | G98: btu/(h*ft*F) | H98: Thermal conductivity as a function of pressure and temperature.
A99: tc_ph | B99: 1 | C99: psi | D99: 100 | E99: btu/(lb F) | F99: =tc_ph(B99,D99) -> 0.020136752 | G99: btu/(h*ft*F) | H99: Thermal conductivity as a function of pressure and enthalpy
A100: tc_hs | B100: 100 | C100: btu/lb | D100: =D73 -> 0.1851252476 | E100: btu/(lb F) | F100: =tc_hs(B100,D100) -> 0.373481961 | G100: btu/(h*ft*F) | H100: Thermal conductivity as a function of enthalpy and entropy
A101: Surface Tension
A102: IAPWS Release on Surface Tension of Ordinary Water Substance, September 1994
A103: st_T | B103: 100 | C103: deg F | F103: =st_T(B104) -> 0.005342277531 | G103: lb/ft | H103: Surface tension for two phase water/steam as a function of T
A104: st_p | B104: 1 | C104: psi | F104: =st_p(B104) -> 0.00478309732 | G104: lb/ft | H104: Surface tension for two phase water/steam as a function of T
A105: Vapour fraction
A106: x_ph | B106: 1 | C106: psi | D106: 1000 | E106: btu/lb | F106: =x_ph(B106,D106) -> 0.8981961874 | H106: Vapour fraction as a function of pressure and enthalpy
A107: x_ps | B107: 1 | C107: psi | D107: 4 | E107: btu/(lb F) | F107: =x_ps(B107,D107) -> 1 | H107: Vapour fraction as a function of pressure and entropy.
A108: Vapour Volume Fraction
A109: Observe that vapour volume fraction is very sensitive. Vapour volume is about 1000 times greater than liquid volume and therfore vapour volume fraction
A110: gets close to the accurancy of steam IF-97
A111: vx_ph | B111: 1 | C111: psi | D111: 418 | E111: btu/lb | F111: =vx_ph(B111,D111) -> 0.9999045037 | H111: Vapour volume fraction as a function of pressure and enthalpy
A112: vx_ps | B112: 1 | C112: psi | D112: 4 | E112: btu/(lb F) | F112: =vx_ps(B112,D112) -> 1 | H112: Vapour volume fraction as a function of pressure and entropy.
A113: Copy Rights: Not to be copied or distributed without specific permission from Inveno Engineering LLC; kelly.paffel@invenoeng.com
